bitfinex/quotes_BTCUSD_20251230
["timestamp","ask_amount","ask_price","bid_price","bid_amount"]
[1767108727349,0.0114,88592.0,88580.0,0.01128923]
[1767108727550,0.0114,88592.0,88577.0,0.69717]
[1767108727788,0.74002,88592.0,88575.0,0.01128986]
[1767108727994,0.74002,88592.0,88576.0,0.01128973]
[1767108728703,0.74002,88592.0,88575.0,0.01128986]
[1767108729388,0.74002,88592.0,88574.0,0.01128999]
[1767108729599,0.74002,88592.0,88571.0,0.01129037]
[1767108729811,0.74002,88592.0,88573.0,0.01129012]
[1767108730018,0.74002,88592.0,88572.0,0.01129024]
[1767108730232,0.74002,88592.0,88574.0,0.01128999]
[1767108730460,0.74002,88592.0,88573.0,0.01129012]
[1767108730868,0.74002,88592.0,88574.0,0.05644997]
[1767108731050,0.74002,88592.0,88576.0,0.01128973]
[1767108731203,0.74002,88592.0,88573.0,0.01129012]
[1767108731407,0.74002,88592.0,88577.0,0.01128961]
[1767108731612,0.74002,88592.0,88576.0,0.01128973]
[1767108732213,0.74002,88592.0,88581.0,0.0112891]
[1767108732443,0.0002,88595.0,88589.0,0.06772792]
[1767108732761,0.0452,88599.0,88592.0,0.0112877]
[1767108732762,0.0114,88594.0,88592.0,0.0112877]
[1767108732895,0.0114,88594.0,88589.0,0.01128808]
[1767108733098,0.0114,88594.0,88586.0,0.01128846]
[1767108733300,0.0114,88594.0,88588.0,0.01128821]
[1767108733578,0.0114,88594.0,88590.0,0.69717]
[1767108733784,0.0114,88594.0,88591.0,0.69717]
[1767108733941,0.0114,88594.0,88587.0,0.01128833]
[1767108733942,0.0114,88594.0,88585.0,0.69717]
[1767108734143,0.72862,88593.0,88580.0,0.01128923]
[1767108734436,0.72862,88593.0,88576.0,0.01128973]
[1767108734437,0.000549,88585.0,88575.0,0.01128986]
[1767108734647,0.0114,88584.0,88578.0,0.01128948]
[1767108734794,0.01135845,88584.0,88577.0,0.01128961]
[1767108734991,0.01135845,88584.0,88574.0,0.01128999]
[1767108735196,0.01135845,88584.0,88574.0,0.01148999]
[1767108735799,0.01135845,88584.0,88574.0,0.0002]
[1767108736146,0.01135845,88584.0,88575.0,0.01128986]
[1767108736798,0.01135845,88584.0,88574.0,0.01148999]
[1767108737032,0.01135845,88584.0,88574.0,0.0002]
[1767108737166,0.000349,88574.0,88571.0,0.00010679]
[1767108737373,0.0114,88574.0,88571.0,0.00010679]
[1767108737572,0.0114,88579.0,88578.0,0.01128948]
[1767108737777,0.0002,88594.0,88580.0,0.01128923]
[1767108738014,0.0114,88593.0,88578.0,0.71458948]
[1767108738413,0.0002,88594.0,88578.0,0.7033]
[1767108738625,0.0114,88593.0,88578.0,0.7033]
[1767108739004,0.70965,88593.0,88578.0,0.7033]
[1767108739206,0.70965,88593.0,88575.0,0.01128986]
[1767108739436,0.70965,88593.0,88572.0,0.77104117]
[1767108739637,0.70965,88593.0,88573.0,0.71459012]
[1767108739777,0.70965,88593.0,88574.0,0.01128999]
[1767108739980,0.70965,88593.0,88575.0,0.01128986]
[1767108740181,0.70965,88593.0,88576.0,0.01128973]
[1767108740478,0.70965,88593.0,88574.0,0.01128999]
[1767108740707,0.70965,88593.0,88569.0,0.01129063]
[1767108740708,0.000349,88574.0,88563.0,0.0002]
[1767108741016,0.69825,88575.0,88563.0,0.0002]
[1767108741244,0.70965,88574.0,88571.0,7.9e-07]
[1767108741848,0.70965,88574.0,88556.0,0.1477]
[1767108742047,0.69825,88572.0,88556.0,0.00011318]
[1767108742305,0.69825,88572.0,88556.0,3.18e-06]
[1767108743934,0.75481,88571.0,88556.0,3.18e-06]
[1767108745192,0.69825,88571.0,88556.0,3.18e-06]
[1767108745351,0.0114,88570.0,88556.0,3.18e-06]
[1767108745555,0.69825,88569.0,88556.0,3.18e-06]
[1767108748929,0.69825,88569.0,88562.0,0.01129152]
[1767108749152,0.0001578,88581.0,88570.0,0.7033]
[1767108749383,0.0114,88580.0,88570.0,0.7033]
[1767108749831,0.0114,88580.0,88570.0,0.7145905]
[1767108750005,0.010851,88580.0,88574.0,0.01128999]
[1767108750207,0.010851,88580.0,88576.0,0.7033]
[1767108750434,0.010851,88580.0,88570.0,0.7145905]
[1767108750657,0.010851,88580.0,88571.0,0.01129037]
[1767108751445,1e-06,88580.0,88574.0,0.7033]
[1767108751862,1e-06,88580.0,88574.0,0.71458999]
[1767108751999,1e-06,88580.0,88574.0,0.7033]
[1767108752199,1e-06,88580.0,88574.0,0.71458999]
[1767108752444,1e-06,88580.0,88574.0,0.7033]
[1767108752602,1e-06,88580.0,88574.0,0.71458999]
[1767108752806,1e-06,88580.0,88576.0,0.7033]
[1767108753065,1e-06,88580.0,88576.0,0.71458973]
[1767108753263,1e-06,88580.0,88578.0,0.7033]
[1767108755378,0.10408641,88579.0,88578.0,0.7033]
[1767108756413,0.10408641,88579.0,88575.0,0.7033]
[1767108757210,0.10408641,88579.0,88443.0,0.48616503]
[1767108757211,0.10408641,88579.0,88568.0,0.02269075]
[1767108757413,0.000549,88575.0,88571.0,0.7033]
[1767108757608,0.10408641,88579.0,88571.0,0.7033]
[1767108758700,0.10408641,88579.0,88575.0,0.01128986]
[1767108758903,0.10408641,88579.0,88576.0,0.7033]
[1767108759098,0.10408641,88579.0,88576.0,0.71458973]
[1767108759333,0.0114,88585.0,88582.0,0.01128897]
[1767108759588,0.0114,88585.0,88582.0,0.7033]
[1767108760343,0.0114,88585.0,88580.0,0.7033]
[1767108760344,0.000549,88582.0,88580.0,0.7033]
[1767108760581,0.0114,88585.0,88581.0,0.0112891]
[1767108760741,0.0002,88594.0,88582.0,0.71458897]
[1767108760940,0.01136,88588.0,88582.0,0.71458897]
[1767108761187,0.01136,88588.0,88582.0,0.7033]
[1767108761906,0.01136,88588.0,88582.0,0.71458897]
[1767108762113,0.01136,88588.0,88582.0,0.7033]
[1767108762282,0.01136,88588.0,88581.0,0.0112891]
[1767108762283,0.01136,88588.0,88581.0,0.7033]
[1767108763594,1e-08,88594.0,88593.0,0.75973786]
[1767108763833,0.3938,88624.0,88591.0,0.01128782]
[1767108763834,0.0002364,88615.0,88600.0,0.7033]
[1767108764032,0.0002364,88615.0,88605.0,0.71458604]
[1767108764489,0.0002364,88615.0,88605.0,0.7033]
[1767108764682,0.0002364,88615.0,88600.0,0.87152583]
[1767108764683,0.0002364,88615.0,88610.0,0.7145854]
[1767108764882,0.00059258,88615.0,88610.0,0.7033]
[1767108765892,0.00055096,88615.0,88610.0,0.7145854]
[1767108766093,0.00055096,88615.0,88612.0,0.74301]
[1767108766494,0.00055096,88615.0,88612.0,0.75429515]
[1767108766768,0.00055096,88615.0,88612.0,0.81072068]
[1767108767047,1e-08,88615.0,88614.0,0.05642449]
[1767108767222,1e-08,88615.0,88614.0,0.79943449]
[1767108767418,1e-08,88615.0,88614.0,0.74301]
[1767108767892,1e-08,88615.0,88610.0,0.0564265]
[1767108767893,0.000549,88614.0,88610.0,0.0112854]
[1767108768129,0.000549,88614.0,88610.0,0.7542954]
[1767108768342,1e-08,88615.0,88611.0,0.75429528]
[1767108768547,1e-08,88615.0,88612.0,0.75429515]
[1767108768764,1e-08,88615.0,88607.0,0.74301]
[1767108768981,1e-08,88615.0,88607.0,0.01136]
[1767108769196,1e-08,88615.0,88607.0,0.76565579]
[1767108769425,0.000549,88607.0,88598.0,0.01136]
[1767108769670,1e-08,88615.0,88605.0,0.74301]
[1767108769840,1e-08,88615.0,88605.0,0.75429604]
[1767108770014,1e-08,88615.0,88607.0,0.74301]
[1767108770895,0.7238,88614.0,88599.0,0.06779404]
[1767108771098,0.7238,88614.0,88599.0,0.01136]
[1767108771496,0.7238,88614.0,88597.0,0.0002]
[1767108771915,0.7238,88614.0,88574.0,0.74301]
[1767108771916,0.801852,88614.0,88574.0,0.74301]
[1767108772142,0.7238,88614.0,88575.0,0.01128986]
[1767108772471,0.7238,88614.0,88576.0,0.01128973]
[1767108772675,0.7238,88614.0,88577.0,0.01128961]
[1767108772976,0.7238,88614.0,88579.0,0.01128935]
[1767108773534,0.7238,88614.0,88578.0,0.01128948]
[1767108773759,0.7238,88614.0,88577.0,0.05644806]
[1767108773941,0.7238,88614.0,88577.0,0.01128961]
[1767108774317,0.7238,88614.0,88576.0,0.01128973]
[1767108774606,0.7238,88614.0,88566.0,0.74301]
[1767108774733,0.7238,88612.0,88561.0,0.75437]
[1767108774938,0.7238,88610.0,88561.0,0.74301]
[1767108775142,0.7238,88608.0,88561.0,0.74301]
[1767108775337,0.7238,88606.0,88561.0,0.74301]
[1767108775925,0.7238,88604.0,88555.0,0.74301]
[1767108776128,0.7238,88602.0,88555.0,0.74301]
[1767108776349,0.7238,88600.0,88555.0,0.75430241]
[1767108776581,0.7238,88598.0,88555.0,0.74301]
[1767108776732,0.7238,88596.0,88555.0,0.75430241]
[1767108776931,0.7238,88594.0,88555.0,0.75430241]
[1767108777180,0.7238,88592.0,88555.0,0.75430241]
[1767108777346,0.7238,88592.0,88552.0,0.01129279]
[1767108777547,0.7238,88592.0,88549.0,0.74301]
[1767108777750,0.0002,88575.0,88555.0,0.0002]
[1767108777971,0.73516,88574.0,88555.0,0.0002]
[1767108778593,0.73516,88574.0,88545.0,0.0003355]
[1767108778925,0.73516,88574.0,88545.0,0.00069167]
[1767108779324,0.73516,88574.0,88546.0,0.75430356]
[1767108779539,0.73516,88574.0,88547.0,0.75430343]
[1767108779833,0.7238,88572.0,88555.0,0.01129241]
[1767108780431,0.01136,88571.0,88558.0,0.74301]
[1767108781301,0.0002,88575.0,88568.0,0.01129075]
[1767108781638,0.01136,88574.0,88562.0,0.74301]
[1767108781844,0.01136,88574.0,88547.0,0.70089]
[1767108781845,0.6841,88567.0,88547.0,0.70089]
[1767108782002,0.01136,88566.0,88551.0,0.01129292]
[1767108782236,0.011011,88566.0,88555.0,0.01129241]
[1767108782606,0.011011,88566.0,88554.0,0.71218254]
[1767108783433,0.011011,88566.0,88554.0,0.70089]
[1767108783793,0.0002,88585.0,88564.0,0.70089]
[1767108783993,0.74062,88584.0,88564.0,0.70089]
[1767108785115,0.74062,88584.0,88554.0,0.06775506]
[1767108785342,0.74062,88584.0,88546.0,0.70089]
[1767108785517,0.000549,88546.0,88540.0,0.70089]
[1767108785717,0.01136,88551.0,88540.0,0.70089]
[1767108786860,0.01081,88551.0,88542.0,0.01129407]
[1767108787207,0.01081,88551.0,88540.0,0.70089]
[1767108787403,0.01081,88551.0,88541.0,0.0112942]
[1767108787924,0.01081,88551.0,88540.0,0.71218433]
[1767108788271,0.01081,88551.0,88537.0,0.0002388]
[1767108788441,0.69491,88551.0,88537.0,0.0002388]
[1767108788649,0.69491,88551.0,88545.0,6.7e-07]
[1767108789019,0.01081,88551.0,88545.0,6.7e-07]
[1767108789347,0.0002,88585.0,88545.0,6.7e-07]
[1767108789348,0.01136,88550.0,88547.0,0.70089]
[1767108789516,0.01136,88550.0,88546.0,0.01129356]
[1767108789517,0.01136,88552.0,88550.0,0.70089]
[1767108789717,0.01136,88553.0,88550.0,0.70089]
[1767108790184,0.0452,88566.0,88550.0,0.70089]
[1767108790377,0.05656,88566.0,88558.0,0.70089]
[1767108790582,0.05656,88566.0,88558.0,0.71218203]
[1767108790806,0.05656,88566.0,88558.0,0.70089]
[1767108790982,0.05656,88566.0,88558.0,0.71218203]
[1767108791189,0.05656,88566.0,88558.0,0.70089]
[1767108791791,0.01136,88566.0,88558.0,0.71218203]
[1767108791993,0.01136,88566.0,88558.0,0.70089]
[1767108792577,0.01136,88566.0,88558.0,0.71218203]
[1767108792914,0.01136,88565.0,88558.0,0.71218203]
[1767108793140,0.01136,88565.0,88558.0,0.01129203]
[1767108793141,0.011219,88565.0,88558.0,0.01129203]
[1767108793293,0.011219,88565.0,88557.0,0.70089]
[1767108793476,0.6841,88576.0,88557.0,0.70089]
[1767108793477,0.01136,88566.0,88557.0,0.71218216]
[1767108793683,0.0002,88585.0,88558.0,0.04975378]
[1767108793909,0.0609787,88617.0,88558.0,0.04975378]
[1767108793910,0.69499656,88607.0,88584.0,0.70089]
[1767108794108,0.0002,88595.0,88592.0,0.0112877]
[1767108794306,0.0002,88595.0,88588.0,0.01128821]
[1767108794307,0.01136,88610.0,88598.0,0.05643468]
[1767108794736,0.000549,88598.0,88583.0,0.01128884]
[1767108794932,0.000549,88598.0,88588.0,0.01128821]
[1767108795065,0.00035618,88598.0,88591.0,0.01128782]
[1767108795271,0.00035618,88598.0,88588.0,0.01128821]
[1767108795272,0.01136,88610.0,88597.0,0.01128706]
[1767108795471,0.0114404,88610.0,88596.0,0.70089]
[1767108795674,0.6955404,88610.0,88587.0,0.01128833]
[1767108795895,0.6955404,88610.0,88578.0,0.71217948]
[1767108796108,0.6955404,88610.0,88578.0,0.70089]
[1767108796284,0.6955404,88610.0,88577.0,0.01136]
[1767108796489,0.6955404,88610.0,88577.0,0.06082654]
[1767108796801,0.6955404,88610.0,88575.0,0.0002]
[1767108797439,0.74731,88608.0,88575.0,0.0002]
[1767108797620,0.74731,88606.0,88575.0,0.0002]
[1767108798070,0.74731,88604.0,88562.0,0.06292839]
[1767108798276,0.74731,88602.0,88559.0,0.01136]
[1767108798488,0.74731,88600.0,88559.0,0.01136]
[1767108798723,0.74731,88598.0,88556.0,0.01129228]
[1767108798899,0.74731,88598.0,88555.0,0.01129241]
[1767108799101,0.74731,88598.0,88554.0,0.01129254]
[1767108799102,0.74731,88596.0,88554.0,0.01129254]
[1767108799317,0.74731,88596.0,88555.0,0.01129241]
[1767108799521,0.74731,88596.0,88556.0,0.01129228]
[1767108799673,0.74731,88596.0,88557.0,0.01129216]
[1767108799898,0.74731,88594.0,88559.0,0.0112919]
[1767108800084,0.74731,88592.0,88561.0,0.75158165]
[1767108800285,0.74731,88592.0,88562.0,0.01129152]
[1767108800538,0.74731,88592.0,88564.0,0.01129126]
[1767108800699,0.74731,88592.0,88565.0,0.01129114]
[1767108800893,0.74731,88592.0,88564.0,0.74029]
[1767108801346,0.74731,88592.0,88560.0,0.01129177]
[1767108801579,0.74731,88590.0,88560.0,0.01129177]
[1767108802010,0.74731,88590.0,88559.0,0.7515819]
[1767108802225,0.74731,88590.0,88560.0,0.01129177]
[1767108802961,0.74731,88590.0,88561.0,0.01129165]
[1767108803379,0.74731,88590.0,88562.0,0.01129152]
[1767108803572,0.01136,88593.0,88565.0,0.74049]
[1767108803573,0.74731,88584.0,88565.0,0.74049]
[1767108803776,0.01136,88583.0,88565.0,0.74049]
[1767108804017,0.74731,88582.0,88565.0,0.74049]
[1767108804959,0.74731,88582.0,88565.0,0.74084618]
[1767108810694,0.74731,88582.0,88489.0,0.0002]
[1767108810695,0.74731,88580.0,88539.0,0.01129445]
[1767108810824,0.74731,88578.0,88540.0,0.74029]
[1767108811026,0.02432212,88579.0,88540.0,0.74029]
[1767108811027,0.74731,88576.0,88540.0,0.74029]
[1767108811229,0.74731,88574.0,88540.0,0.75158433]
[1767108811421,0.04623962,88575.0,88540.0,0.74029]
[1767108811422,0.74731,88572.0,88540.0,0.74029]
[1767108811622,0.74731,88570.0,88540.0,0.75158433]
[1767108811840,0.74731,88570.0,88545.0,0.01129369]
[1767108812314,0.74731,88570.0,88547.0,0.01129343]
[1767108812515,0.74731,88570.0,88548.0,0.74029]
[1767108812894,0.74731,88570.0,88550.0,0.01129305]
[1767108813076,0.74731,88570.0,88549.0,0.74029]
[1767108814876,0.74731,88570.0,88536.0,0.0003673]
[1767108815109,0.74731,88568.0,88536.0,0.0003673]
[1767108815314,0.74731,88566.0,88536.0,0.0003673]
[1767108815538,0.74731,88564.0,88536.0,0.0003673]
[1767108815744,0.74731,88562.0,88536.0,0.0003673]
[1767108816026,0.74731,88560.0,88536.0,0.0003673]
[1767108816192,0.74731,88558.0,88536.0,0.0003673]
[1767108817308,0.74731,88556.0,88536.0,0.0003673]
[1767108817522,0.74731,88556.0,88516.0,0.74029]
[1767108819399,0.74731,88546.0,88516.0,0.00010681]
[1767108819857,0.01136,88551.0,88516.0,0.00010681]
[1767108819858,0.74731,88544.0,88516.0,0.00010681]
[1767108820052,0.74731,88542.0,88516.0,0.00010681]
[1767108820308,0.74731,88540.0,88516.0,0.00010681]
[1767108820629,0.74731,88538.0,88516.0,0.00010681]
[1767108820776,0.0452,88539.0,88519.0,0.74029]
[1767108820970,0.0452,88539.0,88521.0,0.74029]
[1767108821217,0.0452,88539.0,88524.0,0.74029]
[1767108821615,0.0452,88539.0,88516.0,0.00010681]
[1767108821616,0.79251,88539.0,88517.0,0.75158726]
[1767108821818,0.79251,88539.0,88519.0,0.74029]
[1767108822020,0.79251,88539.0,88521.0,0.01129675]
[1767108822220,0.79251,88539.0,88520.0,0.75158688]
[1767108822431,0.74731,88559.0,88530.0,0.74029]
[1767108822675,0.74731,88559.0,88520.0,0.54779614]
[1767108822676,0.74731,88557.0,88526.0,0.74029]
[1767108822809,0.74731,88555.0,88526.0,0.74029]
[1767108823006,0.74731,88555.0,88518.0,0.74029]
[1767108823252,0.74731,88553.0,88518.0,0.74029]
[1767108823447,0.02424898,88552.0,88518.0,0.74029]
[1767108823661,0.75871,88551.0,88515.0,0.0114]
[1767108823960,0.75871,88551.0,88516.0,0.74039681]
[1767108824525,0.04033697,88565.0,88516.0,0.74039681]
[1767108824526,0.74731,88562.0,88551.0,0.000549]
[1767108824750,0.0114,88561.0,88543.0,0.74029]
[1767108824950,0.74731,88560.0,88539.0,0.01129445]
[1767108825125,0.74731,88560.0,88539.0,0.06776623]
[1767108825526,0.74731,88560.0,88538.0,0.75158458]
[1767108825728,0.74731,88560.0,88538.0,0.75169139]
[1767108825948,0.74731,88560.0,88540.0,0.01129433]
[1767108826149,0.74731,88560.0,88538.0,0.75169139]
[1767108826355,0.74731,88560.0,88539.0,0.01129445]
[1767108826959,0.74731,88560.0,88538.0,0.75169139]
[1767108827137,0.74731,88560.0,88539.0,0.01129445]
[1767108827519,0.74731,88560.0,88540.0,0.01129433]
[1767108827748,0.74731,88560.0,88543.0,0.06776351]
[1767108827949,0.74731,88560.0,88540.0,0.01129433]
[1767108828153,0.0114,88561.0,88545.0,0.69085]
[1767108828353,0.0114,88561.0,88560.0,0.000549]
[1767108828354,0.01085,88561.0,88560.0,0.000549]
[1767108828763,0.01085,88561.0,88550.0,0.69085]
[1767108830888,0.01085,88561.0,88497.0,0.10128438]
[1767108830889,0.6915,88561.0,88533.0,0.69085]
[1767108831101,0.6915,88561.0,88533.0,0.0114]
[1767108831726,0.6915,88561.0,88531.0,0.69085]
[1767108831929,0.6915,88561.0,88525.0,0.69085]
[1767108832343,0.6915,88561.0,88534.0,0.69085]
[1767108832541,0.6915,88561.0,88538.0,0.69095681]
[1767108834591,0.0114,88560.0,88544.0,0.69085]
[1767108834942,0.0114,88560.0,88546.0,0.69085]
[1767108835316,0.0114,88560.0,88546.0,0.70214356]
[1767108835517,0.0114,88560.0,88548.0,0.69085]
[1767108835722,0.0114,88560.0,88548.0,0.7021433]
[1767108835868,0.0114,88560.0,88548.0,0.69085]
[1767108838845,0.010851,88560.0,88551.0,0.74296]
[1767108840286,0.010851,88560.0,88545.0,0.74296]
[1767108841606,0.000549,88545.0,88538.0,0.74306681]
[1767108841805,0.000549,88545.0,88538.0,0.00010681]
[1767108842131,0.69032,88549.0,88538.0,0.00010681]
[1767108842560,0.0114,88550.0,88538.0,0.00010681]
[1767108842791,0.0114,88550.0,88538.0,0.75436139]
[1767108842960,0.0114,88550.0,88538.0,0.74306681]
[1767108843166,0.0114,88554.0,88543.0,0.01129394]
[1767108843426,0.000549,88543.0,88538.0,0.00010681]
[1767108843668,0.690869,88543.0,88538.0,8.1e-07]
[1767108843838,0.69032,88543.0,88525.0,0.74296]
[1767108844132,0.69032,88543.0,88514.0,0.01129764]
[1767108844133,0.000443,88525.0,88512.0,0.74296]
[1767108844340,0.0114,88527.0,88512.0,0.7430669]
[1767108844700,0.0114,88527.0,88513.0,0.74296]
[1767108844929,0.0114,88527.0,88516.0,0.74296]
[1767108845137,0.011294,88527.0,88516.0,0.74296]
[1767108845922,0.011294,88527.0,88512.0,0.0001069]
[1767108846103,0.011294,88527.0,88513.0,0.75425777]
[1767108846308,4e-06,88527.0,88519.0,0.74296]
[1767108846504,4e-06,88527.0,88524.0,0.74296]
[1767108846702,0.0114,88539.0,88527.0,0.74296]
[1767108849171,0.0114,88546.0,88533.0,0.74296]
[1767108849337,0.0114,88546.0,88535.0,0.74296]
[1767108849543,0.0114,88546.0,88539.0,0.01129445]
[1767108849760,0.0114,88546.0,88540.0,0.74296]
[1767108850795,0.0114,88546.0,88539.0,0.74296]
[1767108851004,0.0114,88546.0,88543.0,0.74296]
[1767108851217,0.70172,88555.0,88536.0,0.01129484]
[1767108851411,0.70172,88555.0,88535.0,0.74296]
[1767108851756,0.70172,88555.0,88535.0,0.75425496]
[1767108852005,0.70172,88555.0,88536.0,0.74296]
[1767108852330,0.70172,88555.0,88537.0,0.01129471]
[1767108852476,0.0114,88555.0,88546.0,0.74296]
[1767108852678,0.0114,88555.0,88547.0,0.01122612]
[1767108852880,0.0114,88555.0,88547.0,0.75418612]
[1767108853286,0.0114,88555.0,88552.0,0.01129279]
[1767108853489,0.0114,88562.0,88553.0,0.74296]
[1767108853692,0.01175603,88562.0,88553.0,0.74296]
[1767108853916,0.000549,88553.0,88542.0,0.74296]
[1767108854126,0.000549,88553.0,88545.0,0.74296]
[1767108854327,0.01175603,88562.0,88545.0,0.74296]
[1767108854738,0.70207603,88562.0,88544.0,0.01129382]
[1767108855539,0.70207603,88562.0,88542.0,0.74296]
[1767108855739,0.000549,88544.0,88539.0,0.0114]
[1767108855908,0.69032,88556.0,88538.0,0.0114]
[1767108856107,0.7144,88552.0,88532.0,0.0114]
[1767108856327,0.7144,88550.0,88529.0,0.70198]
[1767108856532,0.7144,88550.0,88531.0,0.01129547]
[1767108856751,0.7144,88550.0,88531.0,0.0001612]
[1767108857108,0.7144,88550.0,88531.0,0.01145667]
[1767108857309,0.7144,88550.0,88532.0,0.01129535]
[1767108857535,0.7144,88550.0,88531.0,0.01145667]
[1767108857838,0.7144,88550.0,88532.0,0.01129535]
[1767108858248,0.7144,88550.0,88531.0,0.01145667]
[1767108859086,0.7144,88550.0,88532.0,0.01129535]
[1767108859581,0.7144,88550.0,88531.0,0.71343667]
[1767108859791,0.7144,88550.0,88533.0,0.05647611]
[1767108859952,0.0114,88551.0,88542.0,0.01129407]
[1767108860158,0.00035603,88562.0,88545.0,0.70198]
[1767108860423,0.0114,88561.0,88551.0,0.01129292]
[1767108860624,0.0114,88561.0,88549.0,0.01129318]
[1767108861106,0.0114,88561.0,88549.0,0.70198]
[1767108861475,0.00035603,88562.0,88555.0,0.70198]
[1767108862277,0.00035603,88562.0,88558.0,0.70198]
[1767108862530,0.01197466,88566.0,88559.0,0.70198]
[1767108862720,0.00068139,88566.0,88559.0,0.70198]
[1767108865374,0.00068139,88566.0,88559.0,0.7132719]
[1767108865622,0.00068139,88566.0,88562.0,0.70198]
[1767108865896,0.00068139,88566.0,88559.0,0.0112919]
[1767108866039,0.0114,88572.0,88566.0,0.00931861]
[1767108868561,0.0114,88572.0,88566.0,0.00876961]
[1767108871913,0.0114,88572.0,88555.0,0.70198]
[1767108872036,0.72589244,88572.0,88555.0,0.70198]
[1767108872661,0.72589244,88572.0,88552.0,0.02269279]
[1767108872892,0.72589244,88572.0,88553.0,0.70198]
[1767108874346,0.01149244,88572.0,88553.0,0.70198]
[1767108876318,0.7144,88571.0,88553.0,0.70198]
[1767108876512,0.01149244,88572.0,88553.0,0.70198]
[1767108876732,0.01149244,88572.0,88557.0,0.70198]
[1767108877105,0.01149244,88572.0,88552.0,0.0114]
[1767108877106,0.7144,88571.0,88552.0,0.71338]
[1767108878373,0.7144,88571.0,88554.0,0.70198]
[1767108878583,0.01149244,88572.0,88554.0,0.70198]
[1767108879220,0.72589244,88572.0,88554.0,0.70198]
[1767108879854,0.72589244,88572.0,88554.0,0.71334]
[1767108882936,0.72589244,88572.0,88554.0,0.01136]
[1767108883160,0.72589244,88572.0,88526.0,0.70198]
[1767108883161,0.7144,88553.0,88526.0,0.70198]
[1767108883369,0.7144,88553.0,88510.0,0.80353113]
[1767108883370,0.7144,88551.0,88534.0,5.96e-06]
[1767108883541,0.7144,88549.0,88521.0,0.70194252]
[1767108883745,0.01136,88552.0,88518.0,0.0116365]
[1767108883746,0.0002,88531.0,88518.0,0.0116365]
[1767108884890,0.0002,88531.0,88518.0,0.01199253]
[1767108885097,0.7144,88530.0,88518.0,0.00063253]
[1767108886253,0.7144,88530.0,88518.0,8.253e-05]
[1767108889978,0.7144,88530.0,88518.0,2.53e-06]
[1767108890950,0.7683884,88530.0,88500.0,0.0993695]
[1767108891091,0.7144,88530.0,88500.0,0.09947623]
[1767108892441,0.7144,88530.0,88501.0,0.72694]
[1767108894192,0.7144,88530.0,88500.0,0.09947623]
[1767108895088,0.7144,88530.0,88489.0,0.0002]
[1767108895089,0.02424678,88529.0,88489.0,0.0002]
[1767108895323,0.0002,88531.0,88468.0,0.06154758]
[1767108895324,0.74974039,88528.0,88468.0,0.06154758]
[1767108895451,0.73922,88524.0,88468.0,0.06154758]
[1767108895647,0.73922,88498.0,88479.0,0.0002]
[1767108895888,0.73922,88496.0,88479.0,0.0002]
[1767108896881,0.73922,88496.0,88479.0,0.00030686]
[1767108899825,0.73922,88496.0,88468.0,0.00023908]
[1767108900028,0.73932672,88496.0,88468.0,0.00023908]
[1767108900416,0.0114,88495.0,88472.0,0.68356]
[1767108900652,0.0114,88495.0,88470.0,0.5601825]
[1767108900653,0.00010672,88496.0,88495.0,0.000549]
[1767108900852,0.74199672,88496.0,88470.0,0.01130326]
[1767108901027,0.74199672,88496.0,88469.0,0.68356]
[1767108901234,0.74199672,88496.0,88468.0,0.00023908]
[1767108901431,0.74199672,88496.0,88468.0,0.6951026]
[1767108901633,0.0002,88499.0,88496.0,0.00044328]
[1767108901833,0.03050829,88531.0,88486.0,0.01130122]
[1767108902038,0.79758251,88529.0,88490.0,0.68356]
[1767108902292,0.73049,88527.0,88490.0,0.68356]
[1767108902486,0.73049,88525.0,88490.0,0.01130071]
[1767108902785,0.73049,88525.0,88491.0,0.68356]
[1767108902920,0.73049,88525.0,88493.0,0.01130032]
[1767108903115,0.73049,88525.0,88494.0,0.68356]
[1767108905456,0.0003475,88530.0,88501.0,0.68356]
[1767108905655,0.74189,88529.0,88501.0,0.69496]
[1767108905990,0.74189,88529.0,88504.0,0.68356]
[1767108906552,0.74189,88529.0,88504.0,0.69485892]
[1767108906980,0.0114,88529.0,88517.0,0.68356]
[1767108907189,0.0114,88529.0,88519.0,0.011297]
[1767108907516,0.0114,88529.0,88523.0,0.01129649]
[1767108907684,0.00865532,88529.0,88526.0,0.01129611]
[1767108907891,0.0003475,88530.0,88526.0,0.69485611]
[1767108908090,0.0003475,88530.0,88521.0,0.01129675]
[1767108908091,0.0114,88556.0,88531.0,0.01129547]
[1767108908435,0.0114,88556.0,88527.0,0.23731856]
[1767108908436,0.73049,88548.0,88536.0,0.0677689]
[1767108908712,0.73049,88555.0,88540.0,0.01129433]
[1767108908908,0.73049,88555.0,88537.0,0.68356]
[1767108909115,0.000549,88537.0,88536.0,0.0001069]
[1767108909344,0.000106,88536.0,88523.0,0.69496]
[1767108909513,0.000106,88536.0,88508.0,0.06143928]
[1767108909514,0.73070286,88536.0,88520.0,0.0114]
[1767108909739,0.73070286,88536.0,88521.0,0.01129675]
[1767108909861,0.73059686,88536.0,88521.0,0.01129675]
[1767108910303,0.73059686,88536.0,88517.0,0.0114]
[1767108910513,0.73049,88554.0,88536.0,0.01129484]
[1767108910710,0.0452,88570.0,88526.0,0.54887924]
[1767108910711,0.73049,88583.0,88561.0,0.01129165]
[1767108910934,0.73049,88584.0,88561.0,0.00010686]
[1767108911139,0.73049,88584.0,88561.0,8.6e-07]
[1767108911354,0.73049,88582.0,88561.0,8.6e-07]
[1767108911866,0.73049,88582.0,88573.0,0.01129012]
[1767108912228,0.73049,88582.0,88574.0,0.01128999]
[1767108912432,0.73049,88582.0,88571.0,0.01129037]
[1767108912767,0.73049,88582.0,88574.0,0.06773996]
[1767108912925,0.74209,88585.0,88565.0,0.69496]
[1767108913130,0.74209,88585.0,88561.0,8.6e-07]
[1767108913313,0.74209,88585.0,88563.0,0.0114]
[1767108913917,0.0002,88585.0,88576.0,0.01128973]
[1767108914274,0.0114,88589.0,88579.0,0.69484935]
[1767108914431,0.0114,88589.0,88580.0,0.01128923]
[1767108914770,0.0114,88589.0,88579.0,0.68356]
[1767108915679,0.0114,88589.0,88503.0,0.10128438]
[1767108915680,0.73049,88597.0,88573.0,0.68356]